Cogmind - Beta 14 @@@ ROGUE MODE // 2024.10.04 @ 18:13:26 Player: Riksa Result: Destroyed by Y-45 Defender with Heavy Assault Rifle Performance ------------- Evolutions (1) 500 Regions Visited (2) 400 Robots Destroyed (20) 100 Value Destroyed (433) 433 Prototype IDs (0) 0 Alien Tech Used (0) 0 Bonus (0) 0 TOTAL SCORE: 1433 Bonus ------- None Cogmind --------- Core Integrity 0/400 Matter 37/300 Energy 100/100 System Corruption 0% Temperature Cool (0) Movement Core (50) Location -9/Materials Parts ------- > --- POWER (1) -------- (None) > --- PROPULSION (3) --- (None) > --- UTILITY (3) ------ (None) > --- WEAPON (2) ------- (None) > --- INVENTORY (5) ---- Medium Storage Unit Signal Interpreter Grenade Launcher Datajack Peak State ------------ > --- POWER ------------ Light Ion Engine > --- PROPULSION ------- Flight Unit Flight Unit Flight Unit > --- UTILITY ---------- Structural Scanner Visual Processing Unit Seismic Detector > --- WEAPON ----------- Medium Laser Light Assault Rifle > --- INVENTORY -------- Ion Engine Medium Storage Unit Grenade Launcher Datajack [Rating: 10] Favorites ----------- Power Ion Engine Engine Ion Engine Propulsion Light Treads Treads Light Treads Flight Unit Flight Unit Utility Seismic Detector Device Seismic Detector Storage Small Storage Unit Processor Visual Processing Unit Weapon Medium Laser Energy Gun Medium Laser Ballistic Gun Assault Rifle Launcher Grenade Launcher Special Weapon Mining Laser Special Melee Weapon Datajack Build | -11 -10 -9 ------- Run | Yrd Mat Mat Slots Evolved 2 | . . 2 Power . | . . . Propulsion 1 | . . 1 Utility 1 | . . 1 Weapon . | . . . Parts Attached 46 | 6 31 9 Power 6 | 1 4 1 Engine 6 | 1 4 1 Core . | . . . Reactor . | . . . Propulsion 10 | 2 5 3 Treads 5 | 2 3 . Leg . | . . . Wheel . | . . . Hover . | . . . Flight 5 | . 2 3 Utility 13 | 2 9 2 Device 9 | 1 7 1 Storage 3 | 1 2 . Processor 1 | . . 1 Hackware . | . . . Protection . | . . . Artifact . | . . . Weapon 17 | 1 13 3 Energy Gun 7 | . 5 2 Energy Cannon . | . . . Ballistic Gun 4 | 1 3 . Ballistic Cannon . | . . . Launcher 1 | . . 1 Special Weapon 1 | . 1 . Impact Weapon . | . . . Slashing Weapon . | . . . Piercing Weapon . | . . . Special Melee Weapon 4 | . 4 . Unidentified Prototypes . | . . . Parts Lost 13 | . 4 9 Power 2 | . . 2 Propulsion 4 | . 1 3 Utility 2 | . . 2 Weapon 5 | . 3 2 Highest Loss Streak 9 | . 2 9 To Critical Strikes . | . . . Average Slot Usage (%) 92 | . 95 74 Engine 12 | . 13 5 Treads 22 | . 25 . Flight 2 | . . 23 Device 14 | . 14 21 Storage 12 | . 14 . Processor 1 | . . 9 Energy Gun 12 | . 13 1 Ballistic Gun 10 | . 10 7 Special Weapon 2 | . 2 . Peak Build Rating 10 | 6 7 10 Average Rating 6 | 4 6 7 On Entrance 4 | . 6 7 Naked Turns 3 | . . 3 Heaviest Build 30 | 13 30 9 Greatest Support 40 | 40 40 12 Greatest Overweight (x) 1 | . 1 1 Average Overweight (x) . | . . . Largest Inventory Capacity 15 | 8 15 15 Average Capacity 10 | 7 11 5 Most Carried 11 | 6 10 11 Average Carried 6 | 4 6 4 Final Capacity 15 | 8 15 5 Final Carried 9 | 5 9 4 Class Distribution -------------------- 92% | Mutant 7% | Scavenger-Mutant Dominant Class ---------------- Mutant | -10/Materials Scavenger-Mutant | -9/Materials Resources | -11 -10 -9 ----------- Run | Yrd Mat Mat Matter Collected 553 | 221 304 28 Remotely . | . . . Salvage Created 537 | 19 408 110 Parts 45 | 3 36 6 Haulers Intercepted . | . . . Recyclers Shooed 1 | . 1 . Parts Field Recycled . | . . . Retrieved Matter . | . . . Parts Self-Destructed . | . . . Prevented . | . . . Kills | -11 -10 -9 ------- Run | Yrd Mat Mat Combat Hostiles Destroyed 15 | . 12 3 Guns 12 | . 12 . AOE 3 | . . 3 Classes Destroyed 6 | 1 3 2 Worker 1 | . . 1 Tunneler 1 | 1 . . Watcher 3 | . 2 1 Swarmer 6 | . 6 . Grunt 8 | . 6 2 Sentry 1 | . . 1 Best Kill Streak 4 | 1 2 4 Combat Bots Only 2 | . 2 2 Max Kills in Single Turn 2 | 1 1 2 Gunslinging . | . . . Exploded 1 | . . 1 Melee . | . . . Uniques/NPCs Destroyed . | . . . Combat | -11 -10 -9 -------- Run | Yrd Mat Mat Hostile Shots Fired 176 | . 86 90 Missed 48 | . 17 31 Damage Taken 1405 | . 604 801 Core 487 | . 80 407 Absorbed by Shields . | . . . Regen/Repaired (Parts) 50 | . 50 . Core Remaining (%) 84 | 100 68 . Volleys Fired 68 | 4 51 13 Largest 2 | 1 2 1 Hottest 100 | 20 100 30 Shots Fired 96 | 4 79 13 Gun 88 | 4 79 5 Cannon . | . . . Launcher 8 | . . 8 Special . | . . . Kinetic 53 | 4 44 5 Thermal 35 | . 35 . Explosive 8 | . . 8 Electromagnetic . | . . . Robot Hit Streak 13 | 1 13 6 Robot Miss Streak 6 | 3 6 1 Penetration Max . | . . . Secondary Targets 1 | . 1 . Max Gunslinging Chain 1 | . 1 . Shots Hit Robots 58 | 1 46 11 Core Hits 35 | 1 22 12 Critical Kills . | . . . Critical Parts Destroyed . | . . . Critical Strikes 2 | . 2 . Burn 2 | . 2 . Melee Attacks 4 | . 4 . Impact . | . . . Slashing . | . . . Piercing . | . . . Sneak Attacks 2 | . 2 . Combat Hostiles . | . . . Follow-up Attacks . | . . . Damage Inflicted 992 | 12 544 436 Guns 584 | 12 539 33 Cannons . | . . . Explosions 403 | . . 403 Melee . | . . . Ramming 5 | . 5 . Kinetic 372 | 12 327 33 Thermal 212 | . 212 . Explosive 403 | . . 403 Electromagnetic . | . . . Impact . | . . . Slashing . | . . . Piercing . | . . . Highest Corruption . | . . . Average Corruption . | . . . Corruption Purged . | . . . Corruption Blocked . | . . . Overload Shots . | . . . Overflow Damage 2 | . . 2 Projectiles . | . . . Explosions 2 | . . 2 Melee . | . . . Knockbacks . | . . . Impact . | . . . Kinetic . | . . . Secondary . | . . . Self-Inflicted Damage 5 | . . 5 Shots 1 | . . 1 Rammed 2 | . 2 . Targets Rammed 2 | . 2 . Kicked . | . . . Crushed . | . . . Highest Temperature 117 | . 117 11 Average Temperature 24 | . 25 3 Received Heat Transfer 285 | . 120 165 Siege Activations . | . . . Robots Corrupted . | . . . Combat Hostiles . | . . . Parts Fried . | . . . Impact Corruptions . | . . . Robots Melted . | . . . Combat Hostiles . | . . . Parts Melted . | . . . Heat Transferred 777 | . 777 . Parts Sabotaged . | . . . Parts Stolen . | . . . Parts Stripped . | . . . Power Chain Reactions . | . . . Alert | -11 -10 -9 ------- Run | Yrd Mat Mat Peak Influence 257 | 5 252 257 Initial 27 | . 3 27 Average 93 | 3 100 112 Maximum Alert Level 1 | . 1 1 Low Security (%) 91 | 100 91 82 Level 1 8 | . 8 17 Level 2 . | . . . Level 3 . | . . . Level 4 . | . . . Level 5 . | . . . High Security . | . . . Max Security . | . . . Squads Dispatched 4 | . 3 1 Investigation 2 | . 2 . Extermination . | . . . Reinforcement 2 | . 1 1 Assault . | . . . Garrison . | . . . Intercept . | . . . Searches Triggered . | . . . Construction Impeded . | . . . Haulers Reinforced . | . . . Active Scanning Responses . | . . . Cargo Convoy Interrupts . | . . . Stealth | -11 -10 -9 --------- Run | Yrd Mat Mat Distress Signals 4 | . 3 1 Communications Jammed . | . . . Distress Signals . | . . . Times Spotted 43 | . 26 17 Peak Tracking Total 11 | . 5 11 Tactical Retreats 4 | . 3 1 Traps | -11 -10 -9 ------- Run | Yrd Mat Mat Traps Triggered 3 | . 3 . Indirectly . | . . . Trap Hack Attempts . | . . . Triggered . | . . . Disarmed . | . . . Reprogrammed . | . . . Reused . | . . . Traps Extracted . | . . . Installed . | . . . Triggered . | . . . Machines | -11 -10 -9 ---------- Run | Yrd Mat Mat Machines Disabled . | . . . Max in Single Turn . | . . . Machines Repaired . | . . . Machines Dismantled . | . . . Machines Sabotaged . | . . . Overloaded Fab Kills . | . . . Hacking | -11 -10 -9 --------- Run | Yrd Mat Mat Machines Accessed 5 | . 4 1 Terminals 2 | . 1 1 Fabricators . | . . . Repair Stations 1 | . 1 . Recycling Units 2 | . 2 . Scanalyzers . | . . . Garrison Access . | . . . Total Hacks 18 | . 16 2 Successful 14 | . 12 2 Failed 4 | . 4 . Catastrophic . | . . . Database Lockouts . | . . . Manual . | . . . Terminals 6 | . 4 2 Fabricators . | . . . Repair Stations 3 | . 3 . Recycling Units 9 | . 9 . Scanalyzers . | . . . Garrison Access . | . . . Terminal Hacks 4 | . 2 2 Record 1 | . 1 . Alert Level 1 | . . 1 Maintenance Status 1 | . 1 . Transport Status 1 | . . 1 Fabricator Hacks . | . . . Repair Station Hacks 3 | . 3 . Scan Component 2 | . 2 . Repair 1 | . 1 . Recycling Unit Hacks 7 | . 7 . Recycle Component 2 | . 2 . Process 1 | . 1 . Report Inventory 2 | . 2 . Retrieve Matter 1 | . 1 . Retrieve Components 1 | . 1 . Scanalyzer . | . . . Garrison Access Hacks . | . . . Unauthorized Hacks . | . . . Terminals . | . . . Fabricators . | . . . Repair Stations . | . . . Recycling Units . | . . . Scanalyzers . | . . . Garrison Access . | . . . Data Cores Recovered . | . . . Used . | . . . Hacking Detections 2 | . 2 . Full Trace Events 1 | . 1 . Feedback Events . | . . . Feedback Blocked . | . . . Robot Schematics Acquired . | . . . Robots Built . | . . . Authchips . | . . . Time . | . . . Total Robot Build Rating . | . . . Part Schematics Acquired . | . . . Parts Built . | . . . Authchips . | . . . Time . | . . . Total Part Build Rating . | . . . Parts Repaired 1 | . 1 . Time 26 | . 26 . Parts Recycled 2 | . 2 . Recycled Matter 202 | . 202 . Retrieved Matter 202 | . 202 . Retrieved Components 4 | . 4 . Parts Scanalyzed . | . . . Part Schematics Acquired . | . . . Parts Damaged . | . . . Bothacking | -11 -10 -9 ------------ Run | Yrd Mat Mat Used RIF Installer . | . . . Robots Hacked 2 | . 2 . Non-combat 1 | . 1 . Combat 1 | . 1 . Robot Hacks Applied 3 | . 3 . parse_system 3 | . 3 . Relay Couplers Released . | . . . Fabnet Peak Effective % . | . . . Robots Rewired . | . . . Allies Hacked . | . . . Hacks Repelled . | . . . Allies | -11 -10 -9 -------- Run | Yrd Mat Mat Total Allies . | . . . Largest Group . | . . . Highest-Rated Group . | . . . Highest-Rated Ally . | . . . Total Orders . | . . . Ally Attacks . | . . . Total Damage . | . . . Kills . | . . . Allies Corrupted . | . . . Allies Melted . | . . . Intel | -11 -10 -9 ------- Run | Yrd Mat Mat Robot Analysis Total . | . . . Derelict Logs Recovered . | . . . Drone Launches . | . . . Drone Recoveries . | . . . Exploration | -11 -10 -9 ------------- Run | Yrd Mat Mat Turns Passed 1188 | 99 951 138 Spaces Moved 692 | 55 427 210 Core 12 | 12 . . Treads 470 | 43 427 . Legs . | . . . Wheels . | . . . Hover . | . . . Flight 210 | . . 210 Fastest Speed 34 | 50 160 34 Average Speed 127 | 136 170 39 Slowest Speed 240 | 160 240 120 Overloaded Moves . | . . . Propulsion Burnouts . | . . . Robots Hopped 2 | . . 2 Cave-ins Triggered . | . . . Exploration Rate (%) 29 | 4 59 25 Regions Visited 2 Branch Regions . Pre-discovered Areas . | . . . Known Exits Taken . | . . . Unknown Exits Taken 2 | 1 1 . Scrap Searched . | . . . Spaces Dug . | . . . Terrain Destroyed 22 | . . 22 Melee . | . . . Projectile . | . . . AOE 22 | . . 22 Terrain Rammed . | . . . Walls Destroyed . | . . . Machines Disabled . | . . . Actions | -11 -10 -9 --------- Run | Yrd Mat Mat Total 897 | 75 568 254 Wait 34 | . 20 14 Move 686 | 54 426 206 Hop 2 | . . 2 Pick Up 38 | 11 23 4 Fast Attach . | . . . Attach 29 | 6 14 9 Detach 6 | . 4 2 Swap 17 | . 17 . Drop 11 | . 7 4 Fire 68 | 4 51 13 Melee 4 | . 4 . Ram . | . . . Kick . | . . . Crush 2 | . 2 . Escape Stasis . | . . . Rewire . | . . . Trap . | . . . Miscellaneous . | . . . Route ------- -11/Scrapyard -10/Materials (discovered 2 exits: *Mat / [*Min]) -9/Materials (discovered 1 exit: [*Min]) History --------- Turn | Location | Event 12 | -11/Scrapyard | Discovered new exit (range 16) 100 | -11/Scrapyard | Entered Materials 303 | -10/Materials | Build established: Mutant 306 | -10/Materials | Discovered new exit (range 15) 569 | -10/Materials | Repaired Lgt. Treads 805 | -10/Materials | Discovered new exit (range 16) 1051 | -10/Materials | Entered another Materials area 1051 | -9/Materials | Evolved 2 slots: Propulsion x1, Utility x1 1152 | -9/Materials | Discovered new exit (range 18) 1184 | -9/Materials | Core integrity fell below 50% 1187 | -9/Materials | Core integrity fell below 20% 1189 | -9/Materials | Destroyed by Y-45 Defender with Heavy Assault Rifle Last Messages --------------- Connecting with Terminal... >>Alert(Check) Current Alert Level: Low Security >>Enumerate(Transport) Retrieving latest reported positions... Found 6 active transport squads. Downloaded coordinate data. Flight Unit destroyed. Lgt. Assault Rifle destroyed. Ion Engine destroyed. EXIT=FOUND U-05 Engineer destroyed. ALERT: Hostiles spotted, dispatching reinforcements to Terminal M008. Acquired Particle Gun. Seismic Detector destroyed. Flight Unit destroyed. Particle Gun severed. Structural Scanner destroyed. Visual Processing Unit severed. Map ----- +----------------------------------------------------+ | ?????????????????????????????????????????????????? | | ?????????????????????????????????????????????????? | | ?????????????????????????????????????????????????? | | ?????????????????????????????????????????????????? | | ?????????????????????????????????????????????????? | | ?????????????????????????????????????????????????? | | ?????????????????????????????????????????????????? | | #####????????????????????????????????????????????? | | #####????????????????????????????????????????????? | | ############??????????????????????????????????? | | ############??????#########???????????????????? | | # ##??????#########???????????????????? | | # """ ##??????## ##???????????????????? | | # """"" ##??????## ? ##???????????????????? | | # """"" ##??????## ##???????????????????? | | + """"" ##??????## ##???????????????????? | | # """ ##??????## """ ##???????????????????? | | # ##??????## """ ##???????????????????? | | # ##??????## """ ##???????????????????? | | #####+######??????## """ #######??????????????? | | ##### ## ??????## """ ############?????????? | | #### ## ?????????## #### #######?????????? | | #### ## ??? ####### ## ! ##?????????? | | * # ??? ####### ## """ ##########?? | | %! + ??? # ###/#### """ ##########?? | | ! # ??? # l@ s# """ #### ##?? | | ### # ??? # Y/ s #### ##?? | | % # # ??? # Y s# """ #### ##?? | | " # # ??? # Y###### # """ #### ##?? | | T + # ??? ## #######+# """ #### ##?? | | " # # ??? ## # ??? # + + ##?? | | # # ????## # ????? ############# ##?? | | """ # ##????## + ????? ############# ##?? | | """ # ##????## # ???????????######## ###? | | """ # ##???### ###??????????## ###+### | | # ######## ###??????????## " | | """ # ####### !############## "T |*! | | """ # ############## !%= | | """ # ####### | | # ########################### | | ### ############# ####### # ???? # | | ########################?????????????????????????? | | ??????????????? ####?????????????????????????? | | ?????????????????????????????????????????????????? | | ?????????????????????????????????????????????????? | | ?????????????????????????????????????????????????? | | ?????????????????????????????????????????????????? | | ?????????????????????????????????????????????????? | | ?????????????????????????????????????????????????? | | ?????????????????????????????????????????????????? | +----------------------------------------------------+ Best States ------------- Heat Dissipation 28 Energy Generation 10 Energy Capacity 250 Matter Stores 300 Matter Capacity 300 Sight Range 18 Robot Scan Range 14 Terrain Scan Density 10 Evasion (%) 63 Recoil Reduction 2 Item Schematics ----------------- None Robot Schematics ------------------ None Fabricated ------------ Nothing Alien Tech Used ----------------- None Achievements -------------- Crack Shot Challenges ------------ None Game ------ Seed CommDecoyDriver Manual? 0 Play Time 00:33:09 Cumulative 2.3 hours Start 2024.10.04 @ 17:38:54 End 2024.10.04 @ 18:13:26 Sessions 1 Manual Loads 0 Difficulty Rogue Special Mode None Game No. 4 Rogue 4 Adventurer 0 Explorer 0 Win Type - Total 0 Types 0/0/0/0/0/0/0/0/0 Lore% 1 Gallery% 4 Achievement% 6 Wizard Run 0 Options --------- Layout 1 ASCII 0 Keyboard 0 Movement Numpad Keybinds 0 Fullscreen 1 Font 24/Smallcaps Map View 50x35 Zoom Use 0% Tactical HUD 0 Map Filters NONE Filters NONE Steam 1 RUN: fa0f1ede-1c5f-4112-8e37-f080dda87ca6